bitfinex/quotes_SOLUSD_20250204
["timestamp","ask_amount","ask_price","bid_price","bid_amount"]
[1738653991152,0.063,206.51,206.45,109.47725077]
[1738653991448,16.94025077,206.51,206.45,92.6]
[1738653991829,0.063,206.51,206.45,92.6]
[1738653992858,0.063,206.51,206.45,109.47725077]
[1738653993435,0.063,206.51,206.45,16.87725077]
[1738654000939,16.87725077,206.47,206.41,1.6518]
[1738654001139,16.87725077,206.45,206.36,117.65335077]
[1738654001345,16.87725077,206.45,206.36,25.05335077]
[1738654002651,4.3596,206.44,206.36,25.05335077]
[1738654003760,4.3602,206.41,206.36,18.51805077]
[1738654004770,4.3602,206.41,206.36,1.6408]
[1738654005463,27.77465077,206.47,206.38,16.87725077]
[1738654005666,4.3591,206.46,206.4,16.87725077]
[1738654005967,4.3583,206.5,206.44,16.87725077]
[1738654006655,16.87725077,206.49,206.42,16.87725077]
[1738654007048,4.3587,206.48,206.42,16.87725077]
[1738654008261,4.3587,206.48,206.41,92.6]
[1738654008449,4.3587,206.48,206.42,16.87725077]
[1738654008652,0.063,206.51,206.46,16.87725077]
[1738654011747,0.063,206.51,206.46,111.00345077]
[1738654012047,0.063,206.51,206.48,16.87725077]
[1738654014175,0.063,206.51,206.46,92.6]
[1738654014581,16.94025077,206.51,206.46,92.6]
[1738654015277,0.063,206.51,206.46,92.6]
[1738654017074,0.063,206.51,206.44,109.47725077]
[1738654017877,36.87725077,206.49,206.44,92.6]
[1738654018370,20.0,206.49,206.44,92.6]
[1738654018554,16.94025077,206.51,206.44,92.6]
[1738654019978,4.3583,206.5,206.44,92.6]
[1738654020578,16.87725077,206.49,206.44,92.6]
[1738654021465,16.87725077,206.47,206.42,0.03]
[1738654021779,20.0,206.4,206.36,0.03]
[1738654021979,20.0,206.34,206.3,7.45438979]
[1738654022156,16.87725077,206.32,206.3,7.45438979]
[1738654022655,24.9827979,206.32,206.3,8.979e-05]
[1738654023050,32.7257044,206.32,206.3,8.979e-05]
[1738654023858,20.0,206.28,206.26,0.0001]
[1738654024358,16.87725077,206.27,206.26,0.0001]
[1738654024761,27.0686707,206.27,206.26,0.0001]
[1738654024970,30.41184769,206.27,206.26,0.0001]
[1738654025263,20.0,206.24,206.15,94.2248]
[1738654025575,27.0686707,206.2,206.15,1.6248]
[1738654025774,27.0686707,206.22,206.15,1.6248]
[1738654026378,4.3644,206.21,206.15,1.6248]
[1738654026579,29.95857927,206.18,206.16,10.24249525]
[1738654027089,15.11183244,206.17,206.15,1.6248]
[1738654027288,15.11183244,206.17,206.14,103.83344349]
[1738654027462,29.95857927,206.18,206.14,103.83344349]
[1738654028491,29.95857927,206.18,206.16,27.0686707]
[1738654029274,34.32367927,206.18,206.14,103.83344349]
[1738654029470,34.32367927,206.18,206.14,76.76477279]
[1738654030501,61.39234997,206.18,206.1,89.73344349]
[1738654030703,31.4337707,206.18,206.1,89.73344349]
[1738654031779,31.4337707,206.18,206.16,0.03]
[1738654032285,20.0,206.15,206.07,62.66477279]
[1738654032499,20.0,206.15,206.05,0.03]
[1738654032500,27.0686707,206.12,206.05,0.03]
[1738654032658,27.0686707,206.08,206.05,0.03]
[1738654034085,31.4359707,206.08,206.05,0.03]
[1738654035279,4.3673,206.08,206.05,0.03]
[1738654035973,31.4356707,206.1,206.05,0.03]
[1738654036186,20.0,206.06,206.05,0.03]
[1738654036368,27.0686707,206.06,206.05,0.03]
[1738654037691,27.0686707,206.06,205.98,31.9234707]
[1738654037889,27.0686707,206.06,205.99,13.41184853]
[1738654038079,31.4356707,206.1,206.02,27.0686707]
[1738654038386,30.36202758,206.06,205.98,27.0686707]
[1738654038682,27.0686707,206.05,205.98,13.41184853]
[1738654039089,27.0686707,206.09,206.01,27.0686707]
[1738654039669,4.367,206.1,206.03,27.0686707]
[1738654040395,4.3665,206.12,206.05,27.0686707]
[1738654040581,27.0686707,206.13,206.05,27.0686707]
[1738654040771,31.4348707,206.13,206.05,27.0686707]
[1738654042890,27.0686707,206.11,206.03,58.12116294]
[1738654043580,27.0686707,206.11,206.04,13.41184853]
[1738654043883,27.0686707,206.11,206.03,58.15116294]
[1738654044291,4.3668,206.1,206.03,58.15116294]
[1738654044677,4.3668,206.1,206.03,31.08249224]
[1738654044976,16.93882941,206.09,206.03,31.08249224]
[1738654045994,16.93882941,206.09,206.03,0.03]
[1738654046386,4.3672,206.08,206.03,0.03]
[1738654046583,16.93882941,206.07,206.03,0.03]
[1738654047089,16.93882941,206.05,206.03,0.03]
[1738654048195,20.0,206.02,205.89,16.93882941]
[1738654048377,16.93882941,205.98,205.89,16.93882941]
[1738654048979,4.3691,205.99,205.93,16.93882941]
[1738654049183,4.3691,205.99,205.91,16.93882941]
[1738654049575,4.3691,205.99,205.93,16.93882941]
[1738654050009,20.0,206.01,205.93,16.93882941]
[1738654050177,21.30742941,206.02,205.94,13.53733853]
[1738654050371,21.30702941,206.04,205.95,16.93882941]
[1738654050604,16.93882941,206.02,205.95,16.93882941]
[1738654051010,21.30702941,206.04,205.97,16.93882941]
[1738654051503,21.30702941,206.04,205.96,16.93882941]
[1738654052878,16.93882941,206.06,205.98,16.93882941]
[1738654053103,21.30602941,206.08,206.0,16.93882941]
[1738654053314,16.93882941,206.06,205.98,18.50942941]
[1738654054180,4.3678,206.05,205.98,18.50942941]
[1738654054677,16.93882941,206.06,205.98,18.50942941]
[1738654054885,16.93882941,206.06,205.99,13.41184853]
[1738654055083,16.93882941,206.08,206.0,0.12549]
[1738654055404,16.93882941,206.08,206.01,13.41184853]
[1738654056001,17.00182941,206.1,206.01,13.41184853]
[1738654056218,21.36862941,206.1,206.02,4.8538]
[1738654056423,21.36862941,206.1,206.02,21.79262941]
[1738654057282,21.36862941,206.1,206.03,13.41184853]
[1738654057911,16.93882941,206.04,205.97,0.72782421]
[1738654058207,16.93882941,206.01,205.95,0.03]
[1738654059113,16.93882941,206.03,205.96,13.41184853]
[1738654059421,16.93882941,206.07,205.99,17.18980941]
[1738654059608,21.30602941,206.09,206.0,13.41184853]
[1738654060617,47.10967222,206.08,206.0,13.41184853]
[1738654061312,27.10967222,206.04,205.99,22.00621048]
[1738654061618,27.10967222,206.02,205.95,27.13967222]
[1738654061820,27.10967222,206.02,205.95,0.03]
[1738654062425,27.10967222,206.04,205.96,13.41184853]
[1738654063529,4.3682,206.03,205.96,13.41184853]
[1738654064023,27.10967222,206.06,205.97,27.10967222]
[1738654064210,27.10967222,206.04,205.96,13.41184853]
[1738654065330,4.3682,206.03,205.95,0.03]
[1738654065528,27.10967222,206.02,205.95,0.03]
[1738654068149,27.10967222,206.04,205.95,27.39065222]
[1738654068318,31.47727222,206.06,205.98,13.41184853]
[1738654069829,27.10967222,206.06,205.99,27.10967222]
[1738654070038,31.53967222,206.1,206.02,13.41184853]
[1738654071415,0.063,206.1,206.03,27.36065222]
[1738654071621,0.063,206.1,206.06,13.41184853]
[1738654072427,27.10967222,206.08,206.03,3.9]
[1738654072638,27.10967222,206.06,206.03,3.9]
[1738654072815,27.10967222,206.06,205.98,109.72221048]
[1738654073014,27.10967222,206.06,205.99,13.41184853]
[1738654073216,27.10967222,206.06,205.99,40.52152075]
[1738654073640,27.10967222,206.08,205.99,40.52152075]
[1738654074239,27.17267222,206.1,206.03,27.10967222]
[1738654074416,31.53947222,206.1,206.03,27.10967222]
[1738654074818,31.53947222,206.1,206.02,0.12549]
[1738654075015,31.53947222,206.1,206.01,27.10967222]
[1738654075352,27.10967222,206.02,205.95,0.03]
[1738654075655,27.10967222,206.0,205.95,0.03]
[1738654076825,31.47857222,206.0,205.95,0.03]
[1738654077416,27.10967222,205.98,205.95,0.03]
[1738654077622,27.10967222,205.96,205.95,0.03]
[1738654078643,31.47937222,205.96,205.95,0.03]
[1738654079833,31.47917222,205.98,205.95,0.03]
[1738654080033,4.369,206.0,205.95,0.03]
[1738654080423,27.10967222,206.01,205.95,0.03]
[1738654080624,4.3686,206.02,205.95,27.13967222]
[1738654081339,27.10967222,206.05,205.97,27.10967222]
[1738654081546,27.10967222,206.07,205.98,13.41184853]
[1738654081737,27.10967222,206.07,205.99,27.10967222]
[1738654082052,27.10967222,206.07,205.98,13.41184853]
[1738654082053,27.10967222,206.05,205.98,13.41184853]
[1738654082244,4.4308,206.06,205.98,13.41184853]
[1738654082245,27.10967222,206.03,205.98,13.41184853]
[1738654082642,27.10967222,206.03,205.97,3.9]
[1738654082837,4.3685,206.02,205.97,3.9]
[1738654083340,27.10967222,206.01,205.95,22.03621048]
[1738654083664,4.3685,206.02,205.95,0.03]
[1738654083665,27.10967222,205.96,205.95,0.03]
[1738654086362,31.47937222,205.96,205.95,0.03]
[1738654087453,27.10967222,205.96,205.95,0.03]
[1738654088143,31.47937222,205.96,205.95,0.03]
[1738654090955,31.60486222,205.96,205.95,0.03]
[1738654091152,20.0,205.93,205.83,27.10967222]
[1738654091352,27.10967222,205.89,205.81,28.74207222]
[1738654091953,27.10967222,205.89,205.81,33.60087222]
[1738654092149,27.10967222,205.89,205.81,28.74207222]
[1738654093450,31.48107222,205.89,205.81,28.74207222]
[1738654093650,20.0,205.93,205.83,27.10967222]
[1738654093651,31.48067222,205.91,205.83,27.10967222]
[1738654095062,27.10967222,205.91,205.83,31.96797222]
[1738654095634,27.10967222,205.95,205.87,27.10967222]
[1738654095836,31.47977222,205.95,205.87,27.10967222]
[1738654096034,27.10967222,205.91,205.83,31.96797222]
[1738654096761,27.10967222,205.91,205.84,13.41184853]
[1738654097166,27.10967222,205.93,205.85,27.10967222]
[1738654097464,27.10967222,205.95,205.85,31.96757222]
[1738654097757,27.10967222,205.95,205.86,13.41184853]
[1738654098860,27.10967222,205.95,205.86,30.37699772]
[1738654098861,16.96514919,205.95,205.86,30.37699772]
[1738654099269,4.3702,205.94,205.86,35.23439772]
[1738654100164,4.3702,205.94,205.86,34.73439772]
[1738654100863,4.3702,205.94,205.86,34.23439772]
[1738654101050,16.96514919,205.95,205.87,0.12549]
[1738654101256,16.96514919,205.95,205.88,16.96514919]
[1738654101635,21.39814919,205.95,205.88,16.96514919]
[1738654102151,16.96514919,205.93,205.86,16.96514919]
[1738654102351,16.96514919,205.93,205.84,16.96514919]
[1738654102666,16.96514919,205.91,205.84,21.82304919]
[1738654102851,16.96514919,205.91,205.85,13.41184853]
[1738654103369,21.33594919,205.91,205.85,13.41184853]
[1738654104259,0.063,205.95,205.85,18.26964853]
[1738654104260,16.96514919,205.93,205.85,18.26964853]
[1738654104464,4.3702,205.94,205.87,13.41184853]
[1738654105261,4.3702,205.94,205.86,16.96514919]
[1738654105466,16.96514919,205.93,205.86,16.96514919]
[1738654106653,21.33574919,205.93,205.86,16.96514919]
[1738654107369,21.33574919,205.93,205.84,16.96514919]
[1738654108285,16.96514919,205.91,205.82,25.72364919]
[1738654109642,4.371,205.9,205.82,25.72364919]
[1738654110766,4.371,205.9,205.82,21.82364919]
[1738654110977,16.96514919,205.89,205.81,1.6324]
[1738654111858,16.96514919,205.89,205.81,6.4912]
[1738654113277,4.3714,205.88,205.81,6.4912]
[1738654114163,4.3714,205.88,205.81,6.5212]
[1738654115364,16.96514919,205.89,205.82,16.96514919]
[1738654115675,21.33614919,205.91,205.82,16.96514919]
[1738654116470,21.33614919,205.91,205.83,4.8583]
[1738654116990,16.96514919,205.93,205.84,30.62797772]
[1738654117154,21.39814919,205.95,205.86,16.96514919]
[1738654117355,16.96514919,205.93,205.84,17.21612919]
[1738654117574,16.96514919,205.93,205.85,13.41184853]
[1738654118189,16.96514919,205.91,205.84,16.96514919]
[1738654118607,16.96514919,205.91,205.84,4.8579]
[1738654118787,16.96514919,205.89,205.81,1.6624]
[1738654120206,4.3714,205.88,205.81,1.6624]
[1738654120413,16.96514919,205.87,205.81,0.03]
[1738654121504,21.33684919,205.87,205.81,0.03]
[1738654122383,16.96514919,205.85,205.81,0.03]
[1738654122802,16.96514919,205.83,205.81,0.03]
[1738654123973,10.6788,205.82,205.81,0.03]
[1738654125774,27.64394919,205.82,205.81,0.03]
[1738654126196,27.64394919,205.82,205.7,16.96514919]
[1738654126498,16.96514919,205.72,205.63,21.82824919]
[1738654126706,16.96514919,205.7,205.63,16.96514919]
[1738654127212,16.96514919,205.72,205.65,16.96514919]
[1738654127377,16.96514919,205.7,205.61,35.24049772]
[1738654127713,16.96514919,205.68,205.61,16.96514919]
[1738654127899,16.96514919,205.68,205.59,16.96514919]
[1738654128275,16.96514919,205.68,205.61,16.96514919]
[1738654128678,16.96514919,205.64,205.56,16.96514919]
[1738654128883,16.96514919,205.62,205.54,16.96514919]
[1738654130287,16.96514919,205.62,205.55,4.8649]
[1738654130475,16.96514919,205.62,205.54,21.83024919]
[1738654131286,16.96514919,205.62,205.54,16.96514919]
[1738654131493,16.96514919,205.62,205.54,21.83024919]
[1738654132406,21.34214919,205.62,205.54,16.96514919]
[1738654132697,16.96514919,205.58,205.5,16.96514919]
[1738654132899,16.96514919,205.56,205.48,16.96514919]
[1738654133106,16.96514919,205.6,205.47,3.9]
[1738654133107,16.96514919,205.54,205.47,3.9]
[1738654133482,16.96514919,205.56,205.47,8.7668]
[1738654134887,16.96514919,205.58,205.48,30.62797772]
[1738654135081,16.96514919,205.58,205.5,16.96514919]
[1738654135706,16.96514919,205.6,205.52,16.96514919]
[1738654135999,13.2322138,205.63,205.51,14.39249849]
[1738654136000,16.96514919,205.62,205.54,16.96514919]
[1738654136785,16.96514919,205.62,205.55,4.8649]
[1738654137393,16.96514919,205.64,205.56,16.96514919]
[1738654137593,16.96514919,205.64,205.55,4.8649]
[1738654137796,16.96514919,205.64,205.56,16.96514919]
[1738654137992,16.96514919,205.66,205.56,16.99514919]
[1738654138189,16.96514919,205.64,205.56,16.99514919]
[1738654138494,16.96514919,205.62,205.56,0.03]
[1738654138893,16.96514919,205.66,205.58,16.96514919]
[1738654139486,16.96514919,205.7,205.62,16.96514919]
[1738654140004,16.96514919,205.72,205.64,16.96514919]
[1738654140602,16.96514919,205.72,205.61,0.72921411]
[1738654140603,27.19841269,205.74,205.66,27.19841269]
[1738654140803,27.19841269,205.74,205.67,4.8621]
[1738654141198,27.19841269,205.74,205.67,8.7621]
[1738654141889,27.19841269,205.7,205.67,3.9]
[1738654143416,27.19841269,205.72,205.67,3.9]
[1738654144491,4.3746,205.73,205.67,3.9]
[1738654144492,27.19841269,205.7,205.67,3.9]
[1738654145188,27.19841269,205.7,205.57,1.0]
[1738654145189,27.19841269,205.68,205.57,3.9]
[1738654145512,27.19841269,205.63,205.57,3.9]
[1738654145891,27.19841269,205.65,205.58,27.19841269]
[1738654146191,4.3753,205.7,205.62,27.19841269]
[1738654146511,27.19841269,205.71,205.64,27.19841269]
[1738654147209,31.57351269,205.71,205.64,27.19841269]
[1738654147409,31.57351269,205.71,205.64,32.06121269]
[1738654148290,27.19841269,205.67,205.59,3.9]
[1738654148794,27.19841269,205.69,205.6,31.09841269]
[1738654149297,4.3757,205.68,205.6,31.09841269]
[1738654149496,4.3757,205.68,205.6,35.96211269]
[1738654150330,4.3757,205.68,205.6,32.06211269]
[1738654150532,27.19841269,205.65,205.57,18.27614853]
[1738654150741,27.19841269,205.65,205.58,27.19841269]
[1738654151229,27.19841269,205.65,205.59,0.03]
[1738654151926,31.57491269,205.65,205.59,0.03]
[1738654152291,27.19841269,205.65,205.59,0.03]
[1738654155643,31.57471269,205.65,205.59,0.03]
[1738654156004,27.19841269,205.65,205.59,0.03]
[1738654156223,6.2574,205.69,205.59,0.03]
[1738654156224,27.19841269,205.63,205.59,0.03]
[1738654157105,27.19841269,205.65,205.59,0.03]
[1738654157704,4.3765,205.64,205.59,0.03]
[1738654158633,27.19841269,205.65,205.59,0.03]
[1738654158925,4.3763,205.66,205.59,0.03]
[1738654159929,27.19841269,205.63,205.59,0.03]
[1738654161299,27.19841269,205.65,205.59,0.03]
[1738654162015,31.57481269,205.65,205.59,0.03]
[1738654162832,21.39187431,205.64,205.59,0.03]
[1738654163624,17.01527431,205.6,205.59,0.03]
[1738654164116,37.01527431,205.57,205.49,3.9]
[1738654164504,17.01527431,205.57,205.49,3.9]
[1738654164808,4.3782,205.56,205.49,3.9]
[1738654168530,17.01527431,205.55,205.46,17.01527431]
[1738654168727,17.01527431,205.55,205.46,20.91527431]
[1738654168907,17.01527431,205.55,205.48,17.01527431]
[1738654169848,4.3787,205.54,205.48,17.01527431]
[1738654170913,4.3784,205.56,205.5,17.01527431]
[1738654171142,4.378,205.58,205.52,17.01527431]
[1738654172028,4.378,205.58,205.5,17.01527431]
[1738654172744,4.378,205.58,205.44,0.72974523]
[1738654172745,17.01527431,205.55,205.46,17.01527431]
[1738654172951,17.01527431,205.53,205.46,17.01527431]
[1738654173139,37.01527431,205.55,205.46,17.01527431]
[1738654174229,4.3787,205.54,205.47,0.12549]
[1738654174429,17.01527431,205.59,205.5,17.01527431]
[1738654175460,17.01527431,205.59,205.52,17.01527431]
[1738654175755,4.3774,205.6,205.52,17.01527431]
[1738654176550,0.063,205.59,205.52,21.88087431]
[1738654179448,0.063,205.59,205.52,17.01527431]
[1738654180561,17.07827431,205.59,205.5,21.88117431]
[1738654181337,4.3778,205.58,205.5,21.88117431]
[1738654182039,4.4406,205.59,205.5,21.88117431]
[1738654182452,4.4406,205.59,205.5,23.43517431]
[1738654183858,0.063,205.59,205.5,23.43517431]
[1738654184163,0.063,205.59,205.51,13.41184853]
[1738654185138,0.063,205.59,205.51,18.27774853]
[1738654185646,17.07827431,205.59,205.51,18.27774853]
[1738654185851,17.07827431,205.59,205.51,13.41184853]
[1738654186355,17.07827431,205.59,205.51,18.27764853]
[1738654187378,0.063,205.59,205.52,17.01527431]
[1738654187658,17.01527431,205.57,205.5,1.554]
[1738654187862,17.01527431,205.57,205.5,10.32]
[1738654188164,21.45587431,205.59,205.5,10.32]
[1738654189342,0.063,205.59,205.51,35.54380284]
[1738654189541,4.4406,205.59,205.51,35.54380284]
[1738654189748,0.063,205.59,205.51,35.54380284]
[1738654190238,0.063,205.59,205.54,13.41184853]
[1738654191351,17.07827431,205.59,205.53,4.8652]
[1738654191556,17.07827431,205.59,205.5,18.59927431]
[1738654191557,17.01527431,205.57,205.5,1.584]
[1738654192642,17.01527431,205.57,205.5,6.4501]
[1738654193765,21.39337431,205.57,205.5,6.4501]
[1738654194974,17.07827431,205.59,205.5,23.46537431]
[1738654195179,4.3778,205.58,205.5,23.46537431]
[1738654195551,4.3778,205.58,205.5,6.4501]
[1738654195878,4.3778,205.58,205.5,10.3501]
[1738654196689,17.07827431,205.59,205.51,13.66282853]
[1738654196978,0.063,205.59,205.53,13.66282853]
[1738654197360,0.063,205.59,205.54,4.8652]
[1738654198365,0.063,205.59,205.55,13.41184853]
[1738654198676,0.063,205.59,205.54,4.8652]
[1738654199570,0.063,205.59,205.53,18.52822853]
[1738654199767,0.063,205.59,205.55,13.66282853]
[1738654200284,0.063,205.59,205.56,17.01527431]
[1738654200460,0.063,205.59,205.58,17.26625431]
[1738654200780,0.0001,205.59,205.58,26.92708281]
[1738654201462,0.0001,205.59,205.58,31.79128281]
[1738654201657,0.0001,205.59,205.58,15.06424853]
[1738654202595,0.0001,205.59,205.58,31.06196908]
[1738654202754,0.0001,205.59,205.58,37.18895292]
[1738654203753,17.00952439,205.73,205.62,20.25098]
[1738654204075,25.91775582,205.82,205.72,17.00952439]
[1738654204076,17.00952439,205.79,205.72,17.00952439]
[1738654204461,17.00952439,205.79,205.73,13.66282853]
[1738654204664,7.52427791,205.8,205.76,17.26050439]
[1738654204863,7.52427791,205.8,205.78,13.66282853]
[1738654205063,7.52427791,205.8,205.79,30.54686292]
[1738654205394,7.52427791,205.8,205.79,13.53733853]
[1738654205561,7.52427791,205.8,205.78,17.00952439]
[1738654205766,17.00952439,205.79,205.75,3.9]
[1738654205969,17.00952439,205.77,205.75,3.9]
[1738654207263,17.00952439,205.77,205.69,0.12549]
[1738654207581,21.44572439,205.8,205.61,23.73516144]
[1738654207582,17.00952439,205.73,205.65,20.88952439]
[1738654207782,17.00952439,205.73,205.65,25.75202439]
[1738654207969,17.00952439,205.73,205.66,13.53733853]
[1738654208282,21.38382439,205.75,205.67,17.00952439]
[1738654208463,17.00952439,205.75,205.68,13.53733853]
[1738654209377,21.38382439,205.75,205.67,17.00952439]
[1738654209987,17.00952439,205.73,205.66,13.53733853]
[1738654210563,17.00952439,205.71,205.63,17.00952439]
[1738654210882,4.3748,205.72,205.61,17.00952439]
[1738654210883,17.00952439,205.69,205.61,17.00952439]
[1738654211888,17.00952439,205.71,205.63,17.00952439]
[1738654212483,21.38462439,205.71,205.63,17.00952439]
[1738654212688,17.00952439,205.73,205.65,17.00952439]
[1738654212874,17.00952439,205.71,205.63,17.00952439]
[1738654213184,17.00952439,205.69,205.61,17.00952439]
[1738654213383,17.00952439,205.67,205.59,17.00952439]
[1738654213881,17.07252439,205.71,205.63,17.00952439]
[1738654214066,0.063,205.71,205.65,17.00952439]
[1738654214678,0.063,205.71,205.65,21.87212439]
[1738654214865,0.063,205.71,205.65,17.00952439]
[1738654215065,17.07252439,205.71,205.63,17.00952439]
[1738654215266,0.063,205.71,205.65,17.00952439]
[1738654215675,0.063,205.71,205.67,17.00952439]
[1738654217391,0.063,205.71,205.65,17.00952439]
[1738654217569,0.063,205.71,205.63,17.00952439]
[1738654217570,17.07252439,205.71,205.63,17.00952439]
[1738654218294,17.00952439,205.69,205.62,3.88]
[1738654218587,4.3757,205.68,205.62,3.88]
[1738654218789,4.3757,205.68,205.61,17.00952439]
[1738654219084,4.3757,205.68,205.59,20.88952439]
[1738654219463,4.3757,205.68,205.61,17.00952439]
[1738654220159,4.3757,205.68,205.59,17.00952439]
[1738654220470,4.3761,205.66,205.59,17.00952439]
[1738654221982,17.00952439,205.65,205.58,0.03]
[1738654222898,4.3761,205.66,205.59,17.00952439]
[1738654223067,10.7877,205.67,205.61,17.00952439]
[1738654223386,27.79722439,205.67,205.59,17.00952439]
[1738654224581,17.00952439,205.65,205.58,0.03]
[1738654224786,32.32532439,205.67,205.59,17.00952439]
[1738654226208,32.32532439,205.67,205.59,17.03952439]
[1738654227327,17.00952439,205.63,205.59,0.03]
[1738654227603,17.00952439,205.61,205.59,0.03]
[1738654228212,20.0,205.59,205.58,0.03]
[1738654228515,17.00952439,205.6,205.58,0.0001]
[1738654229497,34.01904878,205.6,205.58,0.0001]
[1738654229687,4.3776,205.59,205.58,0.0001]
[1738654232834,20.0,205.57,205.43,17.00952439]
[1738654233125,20.0,205.57,205.41,17.00952439]
[1738654233126,17.00952439,205.49,205.41,17.00952439]
[1738654233690,17.00952439,205.47,205.39,17.00952439]
[1738654233902,17.00952439,205.45,205.38,3.91]
[1738654234117,21.38982439,205.47,205.39,17.00952439]
[1738654234422,4.3799,205.48,205.41,17.00952439]
[1738654234994,17.00952439,205.49,205.42,17.00952439]
[1738654235312,21.38912439,205.5,205.42,17.00952439]
[1738654236004,6.6532,205.53,205.45,17.13501439]
[1738654236329,21.38752439,205.57,205.49,17.00952439]
[1738654236495,17.00952439,205.55,205.47,17.00952439]
[1738654237433,17.00952439,205.55,205.47,21.87612439]
[1738654237720,4.3784,205.56,205.49,17.00952439]
[1738654238223,17.00952439,205.57,205.49,17.00952439]
[1738654238799,21.38752439,205.57,205.49,17.00952439]
[1738654239210,21.45032439,205.59,205.52,0.12549]
[1738654239597,17.00952439,205.57,205.49,17.00952439]
[1738654240395,17.00952439,205.55,205.47,30.42137292]
[1738654240907,17.00952439,205.53,205.45,17.00952439]
[1738654241711,21.38842439,205.53,205.45,21.87672439]
[1738654242397,17.00952439,205.53,205.45,21.87672439]
[1738654242598,4.3787,205.54,205.45,21.87672439]
[1738654243103,17.07252439,205.59,205.51,17.00952439]
[1738654243428,17.07252439,205.59,205.52,0.12549]
[1738654243632,17.07252439,205.59,205.53,4.8654]
[1738654243806,21.45012439,205.59,205.52,13.53733853]
[1738654244128,17.07252439,205.59,205.52,18.40283853]
[1738654244309,17.00952439,205.57,205.49,17.00952439]
[1738654244509,17.00952439,205.55,205.45,21.87682439]
[1738654244826,17.00952439,205.53,205.45,21.87682439]
[1738654245330,17.00952439,205.53,205.45,17.00952439]
[1738654245805,21.38852439,205.53,205.45,21.87682439]
[1738654247017,17.00952439,205.53,205.46,13.66282853]
[1738654247223,17.00952439,205.55,205.48,0.12549]
[1738654247454,17.00952439,205.55,205.48,13.53733853]
[1738654248262,21.38802439,205.55,205.47,21.87622439]
[1738654248558,0.063,205.59,205.5,17.00952439]
[1738654248714,0.063,205.59,205.57,17.00952439]
[1738654248916,0.063,205.59,205.58,0.72936846]
[1738654249449,0.063,205.59,205.57,17.00952439]
[1738654250644,0.063,205.59,205.58,13.66282853]
[1738654251950,0.063,205.59,205.58,18.52702853]
[1738654253336,0.063,205.59,205.58,20.08342853]
[1738654254561,0.063,205.59,205.58,26.32462853]
[1738654254738,0.063,205.71,205.61,13.66282853]
[1738654254944,0.063,205.71,205.68,13.53733853]
[1738654255466,0.063,205.71,205.69,17.00952439]
[1738654255640,0.063,205.71,205.7,13.66282853]
[1738654256043,0.063,205.71,205.7,15.28402853]
[1738654256441,0.063,205.71,205.7,32.29355292]
[1738654256650,0.063,205.71,205.7,15.28402853]
[1738654257486,0.063,205.71,205.7,20.14542853]
[1738654257954,0.063,205.71,205.7,50.14542853]
[1738654258156,0.063,205.71,205.7,30.0]
[1738654258655,0.063,205.71,205.65,1.5032]
[1738654259065,1.063,205.71,205.64,0.12549]
[1738654259246,1.063,205.71,205.66,27.20393559]
[1738654259548,0.063,205.71,205.66,27.20393559]
[1738654261357,0.063,205.71,205.67,0.25098]
[1738654261538,0.063,205.71,205.7,27.45491559]
[1738654261741,0.063,205.71,205.7,41.59569051]
[1738654261945,0.063,205.71,205.7,69.7996261]
[1738654262137,0.0001,205.71,205.7,77.5120261]
[1738654262342,0.063,205.8,205.74,0.25098]
[1738654262548,0.063,205.8,205.79,27.45491559]
[1738654263053,0.063,205.8,205.79,27.20393559]
[1738654263227,0.063,205.8,205.79,40.86676412]
[1738654263658,0.063,205.81,205.8,0.25098]
[1738654263855,0.063,205.81,205.8,112.7991252]
[1738654263856,0.0001,205.81,205.8,112.7991252]
[1738654264033,0.063,205.92,205.84,13.66282853]
[1738654264359,0.063,205.92,205.91,27.20393559]
[1738654264571,0.063,205.92,205.89,27.20393559]
[1738654265042,0.063,205.92,205.9,27.20393559]
[1738654265240,1.0,205.91,205.86,27.20393559]
[1738654265554,1.0,205.89,205.85,3.88]
[1738654265749,5.3713,205.89,205.85,3.88]
[1738654266053,1.0,205.85,205.78,27.20393559]
[1738654267060,27.20393559,205.88,205.81,0.25098]
[1738654267243,5.3713,205.89,205.82,27.20393559]
[1738654267556,5.3713,205.89,205.84,27.20393559]
[1738654267557,1.0,205.89,205.84,27.20393559]
[1738654267950,1.0,205.91,205.84,27.20393559]